fUSD/lending_fUSD_20240420
["ID","MTS","AMOUNT","RATE_DAILY","PERIOD"]
[323091096,1713643854604,-843.56018,0.00016687,2]
[323091097,1713643854614,-843.56018,0.00016687,2]
[323091098,1713643854624,-860.688735,0.00016687,2]
[323091099,1713643854634,-170.733186,0.00016687,2]
[323091100,1713643854644,-860.688735,0.00016687,2]
[323091101,1713643854655,-170.733186,0.00016687,2]
[323091102,1713643854665,-159.747183,0.00016687,2]
[323091103,1713643854676,-159.747183,0.00016687,2]
[323091104,1713643854686,-563.17611,0.00016687,2]
[323091105,1713643854697,-151.0,0.00016687,2]
[323091106,1713643854707,-563.17611,0.00016687,2]
[323091107,1713643854718,-200.155546,0.00016687,2]
[323091108,1713643854728,-200.155546,0.00016687,2]
[323091109,1713643854739,-151.0,0.00016687,2]
[323091110,1713643854750,-152.816861,0.00016687,2]
[323091111,1713643854760,-185.505672,0.00016687,2]
[323091112,1713643854770,-151.326975,0.00016687,2]
[323091113,1713643854781,-1784.228195,0.00016687,2]
[323091114,1713643854791,-151.326975,0.00016687,2]
[323091115,1713643854802,-1784.228195,0.00016687,2]
[323091116,1713643854813,-344.090692,0.00016687,2]
[323091117,1713643854823,-151.0,0.00016687,2]
[323091118,1713643854834,-344.090692,0.00016687,2]
[323091119,1713643854844,-187.202904,0.00016687,2]
[323091120,1713643854854,-187.202904,0.00016687,2]
[323091121,1713643854864,-151.0,0.00016687,2]
[323091122,1713643854875,-339.231245,0.00016687,2]
[323091123,1713643854885,-339.231245,0.00016687,2]
[323091124,1713643854896,-151.0,0.00016687,2]
[323091125,1713643854906,-189.557232,0.00016687,2]
[323091126,1713643854916,-608.00439,0.00016687,2]
[323091127,1713643854926,-808.556815,0.00016687,2]
[323091128,1713643854935,-152.339646,0.00016687,2]
[323091129,1713643854946,-808.556815,0.00016687,2]
[323091130,1713643854955,-608.00439,0.00016687,2]
[323091131,1713643854964,-152.339646,0.00016687,2]
[323091132,1713643854973,-189.557232,0.00016687,2]
[323091133,1713643854982,-151.0,0.00016687,2]
[323091134,1713643854991,-735.158662,0.00016687,2]
[323091135,1713643855000,-735.158652,0.00016687,2]
[323091136,1713643855010,-812.026672,0.00016687,2]
[323091137,1713643855019,-216.428569,0.00016687,2]
[323091138,1713643855028,-812.02668,0.00016687,2]
[323091139,1713643855037,-216.428573,0.00016687,2]
[323091140,1713643855047,-3052.712357,0.00016687,2]
[323091141,1713643855057,-609.131942,0.00016687,2]
[323091142,1713643855066,-3052.712362,0.00016687,2]
[323091143,1713643855075,-609.131942,0.00016687,2]
[323091144,1713643855084,-789.173154,0.00016687,2]
[323091145,1713643855094,-182.446985,0.00016687,2]
[323091146,1713643855103,-789.17316,0.00016687,2]
[323091147,1713643855113,-182.446984,0.00016687,2]
[323091148,1713643855418,-151.0,0.00016687,2]
[323091149,1713643855441,-476.033381,0.00016687,2]
[323091150,1713643855455,-476.033375,0.00016687,2]
[323091151,1713643855465,-151.0,0.00016687,2]
[323091152,1713643855476,-7178.3179835,0.00016698,2]
[323091153,1713643855485,-31685.5050118,0.00016698,2]
[323091154,1713643855494,-318.233775,0.00016698,2]
[323091155,1713643855503,-318.233775,0.00016698,2]
[323091156,1713643855512,-151.0,0.00016698,2]
[323091157,1713643855522,-1621.31847591,0.000167,2]
[323091158,1713643855531,-1000.0,0.000167,2]
[323091159,1713643855540,-180.82061113,0.00016709,2]
[323091160,1713643855549,-286.61901291,0.00016709,2]
[323091161,1713643855558,-703.42435467,0.00016709,2]
[323091162,1713643855568,-287.75166844,0.00016709,2]
[323091163,1713643855577,-155.0,0.00016709,2]
[323091164,1713643855586,-155.0,0.00016709,2]
[323091165,1713643855595,-193.57070543,0.00016709,2]
[323091166,1713643855604,-155.0,0.00016709,2]
[323091167,1713643855613,-500.0,0.00016712,2]
[323091168,1713643855622,-702.33,0.00016712,2]
[323091169,1713643855631,-1382.21,0.00016712,2]
[323091170,1713643855641,-4580.1,0.00016712,2]
[323091171,1713643855650,-500.0,0.00016712,2]
[323091172,1713643855660,-11216.95,0.00016712,2]
[323091173,1713643855669,-390.506324,0.00016712,2]
[323091174,1713643855679,-178.51,0.00016712,2]
[323091175,1713643855688,-11420.44000137,0.00016718,2]
[323091176,1713643855697,-211.402467,0.00016734,2]
[323091177,1713643855706,-166.912704,0.00016734,2]
[323091178,1713643855715,-150.26072,0.00016734,2]
[323091179,1713643855725,-180.858783,0.00016734,2]
[323091180,1713643855734,-172.043867,0.00016734,2]
[323091181,1713643855742,-157.094309,0.00016734,2]
[323091182,1713643855751,-186.518478,0.00016734,2]
[323091183,1713643855761,-211.402465,0.00016734,2]
[323091184,1713643855770,-1000.0,0.00016785,2]
[323091185,1713643855779,-1001.0,0.000168,3]
[323091186,1713643855788,-169.21,0.00016841,2]
[323091187,1713643855798,-500.0,0.00016841,2]
[323091188,1713643855807,-170.733186,0.00016841,2]
[323091189,1713643855816,-170.733177,0.00016841,2]
[323091190,1713643855825,-159.747183,0.00016841,2]
[323091191,1713643855834,-159.747178,0.00016841,2]
[323091192,1713643855844,-563.17611,0.00016841,2]
[323091193,1713643855853,-151.0,0.00016841,2]
[323091194,1713643855863,-563.176103,0.00016841,2]
[323091195,1713643855871,-200.155546,0.00016841,2]
[323091196,1713643855881,-200.15555,0.00016841,2]
[323091197,1713643855891,-151.0,0.00016841,2]
[323091198,1713643855900,-151.326975,0.00016841,2]
[323091199,1713643855910,-1784.228195,0.00016841,2]
[323091200,1713643855919,-151.326978,0.00016841,2]
[323091201,1713643855928,-1784.228195,0.00016841,2]
[323091202,1713643855938,-151.0,0.00016841,2]
[323091203,1713643855947,-344.090692,0.00016841,2]
[323091204,1713643855956,-344.090692,0.00016841,2]
[323091205,1713643855965,-187.202904,0.00016841,2]
[323091206,1713643855975,-187.202902,0.00016841,2]
[323091207,1713643855984,-151.0,0.00016841,2]
[323091208,1713643855994,-4156.38,0.00016841,2]
[323091209,1713643856004,-339.231245,0.00016841,2]
[323091210,1713643856013,-339.231253,0.00016841,2]
[323091211,1713643856023,-2202.1,0.00016841,2]
[323091212,1713643856032,-151.0,0.00016841,2]
[323091213,1713643856042,-500.0,0.00016841,2]
[323091214,1713643856051,-189.557232,0.00016841,2]
[323091215,1713643856060,-608.00439,0.00016841,2]
[323091216,1713643856070,-808.556815,0.00016841,2]
[323091217,1713643856079,-152.339646,0.00016841,2]
[323091218,1713643856089,-808.556813,0.00016841,2]
[323091219,1713643856098,-608.004395,0.00016841,2]
[323091220,1713643856107,-152.339642,0.00016841,2]
[323091221,1713643856116,-189.557233,0.00016841,2]
[323091222,1713643856125,-151.0,0.00016841,2]
[323091223,1713643856135,-500.0,0.00016841,2]
[323091224,1713643856144,-151.0,0.00016841,2]
[323091225,1713643856154,-10002.58197754,0.000169,2]
[323091226,1713643856164,-216.595099,0.000169,2]
[323091227,1713643856173,-216.595099,0.000169,2]
[323091228,1713643856183,-151.0,0.000169,2]
[323091229,1713643856192,-671.392718,0.000169,2]
[323091230,1713643856201,-671.392718,0.000169,2]
[323091231,1713643856210,-459.044908,0.000169,2]
[323091232,1713643856219,-260.517044,0.000169,2]
[323091233,1713643856229,-459.044908,0.000169,2]
[323091234,1713643856241,-688.066142,0.000169,2]
[323091235,1713643856250,-260.517044,0.000169,2]
[323091236,1713643856259,-688.066142,0.000169,2]
[323091237,1713643856268,-151.0,0.000169,2]
[323091238,1713643856278,-827.803785,0.000169,2]
[323091239,1713643856287,-827.803785,0.000169,2]
[323091240,1713643856296,-843.56018,0.000169,2]
[323091241,1713643856305,-843.56018,0.000169,2]
[323091242,1713643856314,-860.688735,0.000169,2]
[323091243,1713643856325,-860.688735,0.000169,2]
[323091244,1713643856335,-1000.0,0.000169,2]
[323091245,1713643856345,-418.94,0.00016904,2]
[323091246,1713643856354,-1043.62,0.00016904,2]
[323091247,1713643856363,-157.094309,0.00016943,2]
[323091248,1713643856372,-170.47,0.0001695,2]
[323091249,1713643856381,-500.0,0.00016986,2]
[323091250,1713643856390,-702.33,0.00016986,2]
[323091251,1713643856400,-1382.21,0.00016986,2]
[323091252,1713643856409,-4580.1,0.00016986,2]
[323091253,1713643856418,-500.0,0.00016986,2]
[323091254,1713643856428,-11216.95,0.00016986,2]
[323091255,1713643856438,-1000.0,0.00016986,2]
[323091256,1713643856450,-521.53624991,0.00017,2]
[323091257,1713643856459,-40603.0,0.00017,2]
[323091258,1713643856469,-3805.0,0.00017,2]
[323091259,1713643856478,-151.0,0.00017,2]
[323091260,1713643856488,-151.0,0.00017,2]
[323091261,1713643856498,-151.0,0.00017,2]
[323091262,1713643856507,-287.787434,0.00017,2]
[323091263,1713643856517,-151.0,0.00017,2]
[323091264,1713643856528,-272.18507,0.00017,2]
[323091265,1713643856539,-272.18507,0.00017,2]
[323091266,1713643856549,-337.313592,0.00017,2]
[323091267,1713643856559,-337.313592,0.00017,2]
[323091268,1713643856569,-151.0,0.00017,2]
[323091269,1713643856578,-156.805712,0.00017,2]
[323091270,1713643856589,-156.805712,0.00017,2]
[323091271,1713643856599,-776.350726,0.00017,2]
[323091272,1713643856610,-429.991967,0.00017,2]
[323091273,1713643856619,-311.963041,0.00017,2]
[323091274,1713643856631,-776.350726,0.00017,2]
[323091275,1713643856641,-311.963041,0.00017,2]
[323091276,1713643856651,-151.0,0.00017,2]
[323091277,1713643856662,-363.758574,0.00017,2]
[323091278,1713643856672,-738.919755,0.00017,2]
[323091279,1713643856681,-738.919755,0.00017,2]
[323091280,1713643856692,-323.715172,0.00017,2]
[323091281,1713643856702,-151.0,0.00017,2]
[323091282,1713643856713,-323.715172,0.00017,2]
[323091283,1713643856723,-151.0,0.00017,2]
[323091284,1713643856732,-221.308768,0.00017,2]
[323091285,1713643856742,-221.308768,0.00017,2]
[323091286,1713643856752,-150.0,0.00017,2]
[323091287,1713643856762,-151.0,0.00017025,2]
[323091288,1713643856772,-151.0,0.00017025,2]
[323091289,1713643856783,-151.0,0.00017025,2]
[323091290,1713643856792,-318.233775,0.00017025,2]
[323091291,1713643856802,-318.233775,0.00017025,2]
[323091292,1713643856812,-161.529076,0.00017025,2]
[323091293,1713643856821,-15380.3682953,0.00017071,2]
[323091294,1713643856831,-1621.31847591,0.000171,2]
[323091295,1713643856842,-500.0,0.00017115,2]
[323091296,1713643856853,-843.56018,0.00017115,2]
[323091297,1713643856862,-843.560187,0.00017115,2]
[323091298,1713643856872,-860.688735,0.00017115,2]
[323091299,1713643856883,-860.688727,0.00017115,2]
[323091300,1713643856892,-151.0,0.00017115,2]
[323091301,1713643856902,-151.0,0.00017115,2]
[323091302,1713643856911,-1784.228195,0.00017115,2]
[323091303,1713643856920,-1784.2282,0.00017115,2]
[323091304,1713643856930,-344.090692,0.00017115,2]
[323091305,1713643856940,-344.090689,0.00017115,2]
[323091306,1713643856949,-4156.38,0.00017115,2]
[323091307,1713643856958,-2202.1,0.00017115,2]
[323091308,1713643856967,-500.0,0.00017115,2]
[323091309,1713643856977,-500.0,0.00017115,2]
[323091310,1713643856986,-216.595099,0.00017117,2]
[323091311,1713643856996,-216.595103,0.00017117,2]
[323091312,1713643857005,-151.0,0.00017117,2]
[323091313,1713643857015,-671.392718,0.00017117,2]
[323091314,1713643857024,-671.392718,0.00017117,2]
[323091315,1713643857033,-459.044908,0.00017117,2]
[323091316,1713643857043,-260.517044,0.00017117,2]
[323091317,1713643857052,-459.044907,0.00017117,2]
[323091318,1713643857061,-688.066142,0.00017117,2]
[323091319,1713643857070,-260.517052,0.00017117,2]
[323091320,1713643857079,-688.06614,0.00017117,2]
[323091321,1713643857089,-151.0,0.00017117,2]
[323091322,1713643857098,-827.803785,0.00017117,2]
[323091323,1713643857107,-827.803777,0.00017117,2]
[323091324,1713643857115,-157.094309,0.00017152,2]
[323091325,1713643857125,-180.858783,0.00017152,2]
[323091326,1713643857134,-186.518478,0.00017152,2]
[323091327,1713643857144,-173.80588472,0.000172,2]
[323091328,1713643857154,-163.14,0.00017236,2]
[323091329,1713643857163,-11420.44000137,0.00017241,2]
[323091330,1713643857173,-500.0,0.0001726,2]
[323091331,1713643857182,-702.33,0.0001726,2]
[323091332,1713643857192,-1382.21,0.0001726,2]
[323091333,1713643857201,-4580.1,0.0001726,2]
[323091334,1713643857210,-500.0,0.0001726,2]
[323091335,1713643857219,-11216.95,0.0001726,2]
[323091336,1713643857228,-157.094309,0.00017361,2]
[323091337,1713643857242,-500.0,0.00017389,2]
[323091338,1713643857251,-4156.38,0.00017389,2]
[323091339,1713643857261,-2202.1,0.00017389,2]
[323091340,1713643857270,-500.0,0.00017389,2]
[323091341,1713643857279,-500.0,0.00017389,2]
[323091342,1713643857288,-291.75,0.00017446,2]
[323091343,1713643857298,-1621.31847591,0.000175,2]
[323091344,1713643857307,-150.0,0.000175,2]
[323091345,1713643857316,-500.0,0.00017534,2]
[323091346,1713643857326,-702.33,0.00017534,2]
[323091347,1713643857337,-1382.21,0.00017534,2]
[323091348,1713643857346,-4580.1,0.00017534,2]
[323091349,1713643857356,-500.0,0.00017534,2]
[323091350,1713643857365,-11216.95,0.00017534,2]
[323091351,1713643857375,-1000.0,0.00017534,2]
[323091352,1713643857384,-390.506324,0.00017534,2]
[323091353,1713643857393,-157.094309,0.00017571,2]
[323091354,1713643857403,-180.858783,0.00017571,2]
[323091355,1713643857412,-186.518478,0.00017571,2]
[323091356,1713643857422,-6935.32486864,0.00017621,2]
[323091357,1713643857432,-150.0,0.00017655,2]
[323091358,1713643857442,-301.96,0.00017655,2]
[323091359,1713643857452,-473.68,0.00017655,2]
[323091360,1713643857461,-700.58,0.00017655,2]
[323091361,1713643857471,-1037.82,0.00017655,2]
[323091362,1713643857480,-500.0,0.00017663,2]
[323091363,1713643857490,-4156.38,0.00017663,2]
[323091364,1713643857499,-2202.1,0.00017663,2]
[323091365,1713643857509,-484.86191572,0.00017663,2]
[323091366,1713643857518,-500.0,0.00017663,2]
[323091367,1713643857528,-323.715172,0.00017665,2]
[323091368,1713643857537,-151.0,0.00017665,2]
[323091369,1713643857546,-323.715173,0.00017665,2]
[323091370,1713643857556,-151.0,0.00017665,2]
[323091371,1713643857565,-221.308768,0.00017665,2]
[323091372,1713643857575,-221.308778,0.00017665,2]
[323091373,1713643857585,-11420.44000137,0.00017764,2]
[323091374,1713643857594,-1000.0,0.000178,3]
[323091375,1713643857604,-500.0,0.000178,2]
[323091376,1713643857614,-500.0,0.00017808,2]
[323091377,1713643857624,-702.33,0.00017808,2]
[323091378,1713643857633,-1382.21,0.00017808,2]
[323091379,1713643857643,-4580.1,0.00017808,2]
[323091380,1713643857653,-500.0,0.00017808,2]
[323091381,1713643857663,-11216.95,0.00017808,2]
[323091382,1713643857673,-226.813539,0.00017847,2]
[323091383,1713643857684,-151.0,0.00017847,2]
[323091384,1713643857693,-151.0,0.00017847,2]
[323091385,1713643857703,-155.0,0.00017878,2]
[323091386,1713643857714,-10500.48532873,0.00017878,2]
[323091387,1713643857723,-151.0,0.00017878,2]
[323091388,1713643857733,-151.0,0.00017878,2]
[323091389,1713643857744,-151.0,0.00017878,2]
[323091390,1713643857753,-151.0,0.00017878,2]
[323091391,1713643857763,-272.18507,0.00017878,2]
[323091392,1713643857773,-272.18507,0.00017878,2]
[323091393,1713643857783,-337.313592,0.00017878,2]
[323091394,1713643857793,-337.313592,0.00017878,2]
[323091395,1713643857803,-776.350726,0.00017878,2]
[323091396,1713643857814,-776.350726,0.00017878,2]
[323091397,1713643857823,-738.919755,0.00017878,2]
[323091398,1713643857833,-738.919755,0.00017878,2]
[323091399,1713643857843,-151.0,0.0001788,2]
[323091400,1713643857857,-318.233775,0.0001788,2]
[323091401,1713643857896,-318.233782,0.0001788,2]
[323091402,1713643857964,-151.0,0.0001788,2]
[323091403,1713643858025,-151.0,0.0001788,2]
[323091404,1713643858035,-151.0,0.0001788,2]
[323091405,1713643858044,-151.0,0.0001788,2]
[323091406,1713643858054,-272.18507,0.0001788,2]
[323091407,1713643858063,-272.185064,0.0001788,2]
[323091408,1713643858073,-337.313592,0.0001788,2]
[323091409,1713643858082,-337.313583,0.0001788,2]
[323091410,1713643858091,-151.0,0.0001788,2]
[323091411,1713643858101,-156.805712,0.0001788,2]
[323091412,1713643858111,-156.805712,0.0001788,2]
[323091413,1713643858121,-776.350726,0.0001788,2]
[323091414,1713643858130,-429.991967,0.0001788,2]
[323091415,1713643858139,-311.963041,0.0001788,2]
[323091416,1713643858149,-311.963041,0.0001788,2]
[323091417,1713643858159,-776.350722,0.0001788,2]
[323091418,1713643858169,-151.0,0.0001788,2]
[323091419,1713643858179,-363.758574,0.0001788,2]
[323091420,1713643858188,-738.919755,0.0001788,2]
[323091421,1713643858199,-738.919747,0.0001788,2]
[323091422,1713643858208,-7731.42970522,0.0001788,2]
[323091423,1713643858218,-7731.42970522,0.0001788,2]
[323091424,1713643858227,-7731.42970522,0.0001788,2]
[323091425,1713643858240,-1621.31847591,0.000179,2]
[323091426,1713643858249,-222.00545377,0.000179,2]
[323091427,1713643858259,-7731.42970522,0.000179,2]
[323091428,1713643858268,-173.80588472,0.000179,2]
[323091429,1713643858278,-197.18806502,0.000179,2]
[323091430,1713643858288,-816.07883004,0.000179,2]
[323091431,1713643858297,-11418.24979241,0.000179,2]
[323091432,1713643858307,-313.41193825,0.000179,2]
[323091433,1713643858317,-500.0,0.00017937,2]
[323091434,1713643858326,-4156.38,0.00017937,2]
[323091435,1713643858336,-2202.1,0.00017937,2]
[323091436,1713643858345,-500.0,0.00017937,2]
[323091437,1713643858355,-3981.37,0.00017984,2]
[323091438,1713643858364,-5350.0,0.0001799,8]
[323091439,1713643858374,-5350.0,0.0001799,9]
[323091440,1713643858383,-2000.0,0.0001799,3]
[323091441,1713643858393,-1196.14777651,0.00017999,5]
[323091442,1713643858402,-1008.0,0.00018,2]
[323091443,1713643858412,-284.38682221,0.00018,2]
[323091444,1713643858422,-12785569.5495204,0.00018,2]
[323091445,1713643858557,-1350.0,0.00018,2]
[323091446,1713643858599,-482.0,0.00018,2]
[323091447,1713643858609,-151.0,0.00018,2]
[323091448,1713643858619,-156.805712,0.00018,2]
[323091449,1713643858630,-156.805705,0.00018,2]
[323091450,1713643858640,-429.991973,0.00018,2]
[323091451,1713643858651,-311.963041,0.00018,2]
[323091452,1713643858662,-311.963047,0.00018,2]
[323091453,1713643858672,-151.0,0.00018,2]
[323091454,1713643858681,-363.758576,0.00018,2]
[323091455,1713643858693,-150.0,0.00018,2]
[323091456,1713643858702,-2200.0,0.00018005,2]
[323091457,1713643858712,-3100.0,0.00018005,2]
[323091458,1713643858721,-500.0,0.00018082,2]
[323091459,1713643858731,-702.33,0.00018082,2]
[323091460,1713643858740,-1382.21,0.00018082,2]
[323091461,1713643858750,-4580.1,0.00018082,2]
[323091462,1713643858760,-500.0,0.00018082,2]
[323091463,1713643858770,-11216.95,0.00018082,2]
[323091464,1713643858779,-500.0,0.00018211,2]
[323091465,1713643858789,-4156.38,0.00018211,2]
[323091466,1713643858799,-2202.1,0.00018211,2]
[323091467,1713643858809,-500.0,0.00018211,2]
[323091468,1713643858818,-11420.44000137,0.00018286,2]
[323091469,1713643858828,-500.0,0.00018356,2]
[323091470,1713643858837,-702.33,0.00018356,2]
[323091471,1713643858847,-1382.21,0.00018356,2]
[323091472,1713643858856,-4580.1,0.00018356,2]
[323091473,1713643858866,-500.0,0.00018356,2]
[323091474,1713643858876,-11216.95,0.00018356,2]
[323091475,1713643858885,-390.506324,0.00018356,2]
[323091476,1713643858895,-150.0,0.00018401,2]
[323091477,1713643858904,-150.0,0.00018401,2]
[323091478,1713643858913,-150.0,0.00018401,2]
[323091479,1713643858923,-1000.0,0.00018464,2]
[323091480,1713643858932,-500.0,0.00018485,2]
[323091481,1713643858943,-4156.38,0.00018485,2]
[323091482,1713643858953,-2202.1,0.00018485,2]
[323091483,1713643858962,-500.0,0.00018485,2]
[323091484,1713643858971,-150.0,0.000185,2]
[323091485,1713643858981,-151.33,0.00018548,2]
[323091486,1713643858991,-150.0,0.00018548,2]
[323091487,1713643859001,-150.0,0.00018548,2]
[323091488,1713643859010,-150.0,0.00018548,2]
[323091489,1713643859020,-150.0,0.00018548,2]
[323091490,1713643859030,-150.0,0.00018548,2]
[323091491,1713643859039,-2200.0,0.00018553,2]
[323091492,1713643859049,-557.79607916,0.0001863,2]
[323091493,1713643859058,-702.33,0.0001863,2]
[323091494,1713643859067,-1382.21,0.0001863,2]
[323091495,1713643859077,-4580.1,0.0001863,2]
[323091496,1713643859087,-500.0,0.0001863,2]
[323091497,1713643859097,-11216.95,0.0001863,2]
[323091498,1713643859106,-3118.0,0.00018638,2]
[323091499,1713643859114,-399.0,0.00018638,2]
[323091500,1713643859124,-1474.0,0.00018638,2]
[323091501,1713643859133,-2444.0,0.00018638,2]
[323091502,1713643859142,-150.0,0.00018638,2]
[323091503,1713643859152,-1640.0,0.00018638,2]
[323091504,1713643859162,-150.0,0.00018638,2]
[323091505,1713643859171,-214.0,0.00018638,2]
[323091506,1713643859179,-443.0,0.00018638,2]
[323091507,1713643859190,-1140.0,0.00018638,2]
[323091508,1713643859199,-5727.0,0.00018666,2]
[323091509,1713643859208,-5891.0,0.00018666,2]
[323091510,1713643859218,-2704.0,0.00018666,2]
[323091511,1713643859228,-37676.0,0.00018666,2]
[323091512,1713643859241,-1055.0,0.00018666,2]
[323091513,1713643859250,-500.0,0.00018759,2]
[323091514,1713643859259,-4156.38,0.00018759,2]
[323091515,1713643859269,-2202.1,0.00018759,2]
[323091516,1713643859278,-449.98950638,0.00018759,2]
[323091517,1713643859288,-1000.0,0.000188,3]
[323091518,1713643859297,-11420.44000137,0.00018809,2]
[323091519,1713643859307,-174.2705654,0.000189,2]
[323091520,1713643859318,-702.33,0.00018904,2]
[323091521,1713643859327,-1382.21,0.00018904,2]
[323091522,1713643859337,-4580.1,0.00018904,2]
[323091523,1713643859346,-500.0,0.00018904,2]
[323091524,1713643859355,-11216.95,0.00018904,2]
[323091525,1713643859364,-160.2,0.00018949,2]
[323091526,1713643859374,-163.14,0.00018959,2]
[323091527,1713643859384,-299.28871301,0.00019,2]
[323091528,1713643859393,-410.96132098,0.00019,2]
[323091529,1713643859403,-365.8189121,0.00019,2]
[323091530,1713643859412,-74999.0,0.00019,2]
[323091531,1713643859421,-150.0,0.00019,2]
[323091532,1713643859430,-500.0,0.00019033,2]
[323091533,1713643859442,-4156.38,0.00019033,2]
[323091534,1713643859451,-2202.1,0.00019033,2]
[323091535,1713643859460,-166.66666667,0.00019068,2]
[323091536,1713643859470,-154.31998399,0.00019076,2]
[323091537,1713643859479,-154.98058798,0.00019092,2]
[323091538,1713643859488,-772.96881456,0.00019097,2]
[323091539,1713643859497,-1004.14,0.000191,2]
[323091540,1713643859506,-306.38,0.000191,2]
[323091541,1713643859515,-3100.0,0.00019101,2]
[323091542,1713643859524,-164.76488836,0.00019104,2]
[323091543,1713643859534,-164.76488836,0.00019143,2]
[323091544,1713643859543,-164.76488836,0.00019149,2]
[323091545,1713643859552,-152.83,0.00019152,2]
[323091546,1713643859562,-794.97695496,0.00019167,2]
[323091547,1713643859571,-155.94518818,0.00019168,2]
[323091548,1713643859580,-204.53535468,0.00019176,2]
[323091549,1713643859589,-500.0,0.00019178,2]
[323091550,1713643859599,-500.0,0.00019178,2]
[323091551,1713643859608,-500.0,0.00019178,2]
[323091552,1713643859617,-500.0,0.00019178,2]
[323091553,1713643859626,-277.83105982,0.00019178,2]
[323091554,1713643859635,-500.0,0.00019178,2]
[323091555,1713643859644,-334.15145656,0.00019178,2]
[323091556,1713643859654,-199.10206138,0.00019178,2]
[323091557,1713643859663,-213.53493172,0.00019178,2]
[323091558,1713643859673,-500.0,0.00019178,2]
[323091559,1713643859682,-500.0,0.00019178,2]
[323091560,1713643859691,-500.0,0.00019178,2]
[323091561,1713643859700,-500.0,0.00019178,2]
[323091562,1713643859709,-500.0,0.00019178,2]
[323091563,1713643859719,-500.0,0.00019178,2]
[323091564,1713643859729,-500.0,0.00019178,2]
[323091565,1713643859738,-702.33,0.00019178,2]
[323091566,1713643859747,-1382.21,0.00019178,2]
[323091567,1713643859757,-4580.1,0.00019178,2]
[323091568,1713643859766,-297.91,0.00019178,2]
[323091569,1713643859775,-11216.95,0.00019178,2]
[323091570,1713643859784,-2000.0,0.00019178,2]
[323091571,1713643859793,-839.51,0.00019178,2]
[323091572,1713643859802,-151.0,0.00019178,2]
[323091573,1713643859812,-151.0,0.00019178,2]
[323091574,1713643859821,-153.935458,0.00019178,2]
[323091575,1713643859832,-210.46912739,0.00019178,2]
[323091576,1713643859841,-390.506324,0.00019178,2]
[323091577,1713643859850,-197.45574109,0.00019189,2]
[323091578,1713643859860,-521.81,0.00019193,2]
[323091579,1713643859869,-2102.83,0.000192,2]
[323091580,1713643859878,-2885.63,0.000192,2]
[323091581,1713643859887,-3969.4784142,0.000193,3]
[323091582,1713643859896,-204.53535468,0.000193,2]
[323091583,1713643859906,-500.0,0.00019307,2]
[323091584,1713643859915,-4156.38,0.00019307,2]
[323091585,1713643859925,-2413.07614556,0.00019307,2]
[323091586,1713643859934,-2202.1,0.00019307,2]
[323091587,1713643859945,-11420.44000137,0.00019332,2]
[323091588,1713643859954,-10620.72,0.00019339,2]
[323091589,1713643859963,-2481.44498147,0.00019351,2]
[323091590,1713643859972,-197.45574109,0.00019355,2]
[323091591,1713643859982,-153.51544218,0.00019366,2]
[323091592,1713643859991,-170.47,0.00019371,2]
[323091593,1713643860000,-500.0,0.00019375,2]
[323091594,1713643860010,-500.0,0.00019375,2]
[323091595,1713643860019,-108102.209118,0.00019376,7]